fUSD/lending_fUSD_20251112
["ID","MTS","AMOUNT","RATE_DAILY","PERIOD"]
[393715220,1762943451668,-500.0,0.00039178,20]
[393715221,1762943451678,-549.76891176,0.00039178,20]
[393715222,1762943451691,-500.0,0.00039178,20]
[393715223,1762943451701,-500.0,0.00039178,20]
[393715224,1762943451711,-500.0,0.00039178,20]
[393715225,1762943451721,-419.35958348,0.00039178,20]
[393715226,1762943452419,-190.0,0.0003335,7]
[393715227,1762943452428,-190.0,0.00033483,7]
[393715228,1762943452439,-59.43161101,0.00033617,7]
[393715230,1762943676027,-5197.59,0.00025,2]
[393715233,1762944395188,-161.04,0.00033616,2]
[393715234,1762944395210,-68.90918384,0.00033617,7]
[393715235,1762944567085,-61.65920515,0.00033617,7]
[393715236,1762944567106,-1383.49,0.00033711,2]
[393715237,1762944567126,-190.0,0.0003375,7]
[393715238,1762944567146,-361.62365031,0.00033794,2]
[393715239,1762944567166,-200.0,0.00033883,7]
[393715240,1762944567187,-255.313,0.00034,50]
[393715241,1762944567208,-66.02571254,0.0003452,20]
[393715242,1762944627528,157.98,0.0001871,2]
[393715252,1762944632271,-161.0,0.0003432,2]
[393715253,1762944632281,-84.46115446,0.0003452,20]
[393715254,1762944632291,-150.486867,0.0003452,20]
[393715255,1762944632301,-152.6515,0.0003452,20]
[393715256,1762944632311,-152.6515,0.0003452,20]
[393715257,1762944632321,-167.0,0.0003476,120]
[393715258,1762944632331,-400.0,0.00035257,3]
[393715259,1762944632341,-246.0,0.00035257,3]
[393715260,1762944632351,-1117.0,0.00035258,3]
[393715261,1762944632360,-1331.0,0.00035259,3]
[393715262,1762944632370,-300.0,0.00035259,3]
[393715263,1762944632379,-152.6515,0.0003526,20]
[393715264,1762944632389,-163.727435,0.0003526,20]
[393715265,1762944632398,-150.486867,0.0003526,20]
[393715266,1762944632408,-150.486867,0.0003526,20]
[393715267,1762944632417,-150.486867,0.0003526,20]
[393715268,1762944632427,-152.6515,0.0003526,20]
[393715269,1762944632436,-152.6515,0.0003526,20]
[393715270,1762944632447,-152.6515,0.0003526,20]
[393715271,1762944632456,-152.6515,0.0003526,20]
[393715272,1762944632465,-4628.27,0.00036274,2]
[393715273,1762944632475,-200.0,0.00036594,2]
[393715274,1762944632485,-500.0,0.00036609,30]
[393715275,1762944632494,-500.0,0.00036912,30]
[393715276,1762944632504,-1983.5230368,0.00036929,2]
[393715277,1762944632514,-2163.6452475,0.00036929,2]
[393715278,1762944632524,-250.0,0.00036978,2]
[393715279,1762944632534,-250.0,0.00037029,2]
[393715280,1762944632543,-178.87,0.00037104,2]
[393715281,1762944632553,-150.0,0.00037145,2]
[393715282,1762944632563,-150.0,0.00037456,2]
[393715283,1762944632572,-210.0,0.00037456,2]
[393715284,1762944632582,-156.35,0.00037513,60]
[393715285,1762944632592,-500.0,0.00037557,7]
[393715287,1762944632603,-500.0,0.00037557,7]
[393715288,1762944632613,-700.0,0.00037557,7]
[393715289,1762944632623,-156.35,0.00037613,60]
[393715290,1762944632633,-156.35,0.00037713,60]
[393715291,1762944632643,-255.313,0.00038,50]
[393715293,1762944632652,-165.0,0.00038,30]
[393715294,1762944632662,-160.0,0.00038,28]
[393715295,1762944632672,-153.59012997,0.00038027,30]
[393715296,1762944632681,-33161.6491,0.0003803,2]
[393715297,1762944632691,-179.3763009,0.00038037,2]
[393715298,1762944632700,-151.0,0.00038107,2]
[393715300,1762944632709,-151.0,0.00038107,2]
[393715302,1762944632718,-151.0,0.00038107,2]
[393715304,1762944632728,-151.0,0.00038107,2]
[393715306,1762944632737,-151.0,0.00038107,2]
[393715308,1762944632746,-151.0,0.00038107,2]
[393715310,1762944632755,-151.0,0.00038107,2]
[393715312,1762944632764,-151.0,0.00038107,2]
[393715314,1762944632774,-151.0,0.00038107,2]
[393715316,1762944632784,-151.0,0.00038107,2]
[393715318,1762944632794,-151.0,0.00038107,2]
[393715320,1762944632803,-151.0,0.00038107,2]
[393715322,1762944632813,-151.0,0.00038107,2]
[393715325,1762944632822,-151.0,0.00038107,2]
[393715326,1762944632831,-151.0,0.00038107,2]
[393715329,1762944632842,-151.0,0.00038107,2]
[393715330,1762944632854,-151.0,0.00038107,2]
[393715332,1762944632863,-151.0,0.00038107,2]
[393715335,1762944632874,-151.0,0.00038107,2]
[393715336,1762944632885,-151.0,0.00038107,2]
[393715338,1762944632894,-163.51,0.0003812,2]
[393715340,1762944632904,-500.0,0.00038129,15]
[393715341,1762944632914,-500.0,0.00038129,15]
[393715342,1762944632925,-500.0,0.00038129,15]
[393715343,1762944632935,-500.0,0.00038129,15]
[393715344,1762944632944,-500.0,0.00038129,15]
[393715345,1762944632954,-500.0,0.00038129,15]
[393715346,1762944632963,-500.0,0.00038129,15]
[393715347,1762944632972,-500.0,0.00038129,15]
[393715348,1762944632983,-500.0,0.00038129,15]
[393715349,1762944632992,-500.0,0.00038129,15]
[393715350,1762944633002,-500.0,0.00038129,15]
[393715351,1762944633011,-500.0,0.00038129,15]
[393715352,1762944633020,-500.0,0.00038129,15]
[393715353,1762944633030,-500.0,0.00038129,15]
[393715354,1762944633039,-500.0,0.00038129,15]
[393715355,1762944633048,-500.0,0.00038129,15]
[393715356,1762944633060,-500.0,0.00038129,15]
[393715357,1762944633069,-500.0,0.00038129,15]
[393715358,1762944633081,-500.0,0.00038129,15]
[393715359,1762944633090,-500.0,0.00038129,15]
[393715360,1762944633100,-500.0,0.00038129,15]
[393715361,1762944633110,-500.0,0.00038129,15]
[393715362,1762944633119,-500.0,0.00038129,15]
[393715363,1762944633130,-500.0,0.00038129,15]
[393715364,1762944633140,-500.0,0.00038129,15]
[393715365,1762944633150,-500.0,0.00038129,15]
[393715366,1762944633159,-500.0,0.00038129,15]
[393715367,1762944633169,-500.0,0.00038129,15]
[393715368,1762944633179,-500.0,0.00038129,15]
[393715369,1762944633189,-426.79682754,0.00038129,15]
[393715370,1762944633199,-500.0,0.00038129,15]
[393715371,1762944633208,-500.0,0.00038129,15]
[393715372,1762944633218,-500.0,0.00038129,15]
[393715373,1762944633227,-500.0,0.00038129,15]
[393715374,1762944633238,-500.0,0.00038129,15]
[393715375,1762944633248,-500.0,0.00038129,15]
[393715376,1762944633258,-500.0,0.00038129,15]
[393715377,1762944633268,-500.0,0.00038129,15]
[393715378,1762944633277,-500.0,0.00038129,15]
[393715379,1762944633287,-500.0,0.00038129,15]
[393715380,1762944633296,-500.0,0.00038129,15]
[393715381,1762944633306,-500.0,0.00038129,15]
[393715382,1762944633315,-500.0,0.00038129,15]
[393715383,1762944633325,-500.0,0.00038129,15]
[393715384,1762944633334,-500.0,0.00038129,15]
[393715385,1762944633344,-150.0,0.00038129,15]
[393715386,1762944633353,-500.0,0.00038129,15]
[393715387,1762944633362,-500.0,0.00038129,15]
[393715388,1762944633371,-159.13123537,0.00038129,2]
[393715389,1762944633380,-212.61,0.00038129,14]
[393715390,1762944633390,-221.59,0.00038129,7]
[393715391,1762944633400,-10585.39831074,0.0003813,2]
[393715392,1762944633414,-20602.29087905,0.0003813,2]
[393715393,1762944633437,-4872.6625605,0.0003813,2]
[393715394,1762944633449,-994.12251902,0.0003813,2]
[393715395,1762944633459,-326.03172292,0.0003813,2]
[393715396,1762944633475,-627.03415411,0.0003813,2]
[393715397,1762944633487,-1077.5613599,0.0003813,2]
[393715398,1762944633498,-1044.15393787,0.0003813,2]
[393715399,1762944633517,-885.20544451,0.0003813,2]
[393715402,1762944638195,-419.16604923,0.0003813,2]
[393715404,1762944638301,-1641.0868594,0.0003813,2]
[393715405,1762944638313,-3531.76438,0.0003813,2]
[393715406,1762944638326,-664.98932389,0.0003813,2]
[393715407,1762944638354,-15309.28007602,0.0003813,2]
[393715408,1762944638464,-2738.00101014,0.0003813,2]
[393715424,1762944640354,-531.75,0.0003813,2]
[393715425,1762944640398,-2172.71,0.0003813,2]
[393715426,1762944640410,-1209.18894738,0.0003813,2]
[393715427,1762944640421,-8750.65500843,0.0003813,2]
[393715428,1762944640432,-8947.21879473,0.0003813,2]
[393715429,1762944640444,-8943.78386462,0.0003813,2]
[393715430,1762944640455,-9077.54866152,0.0003813,2]
[393715431,1762944640469,-8943.84023489,0.0003813,2]
[393715432,1762944640481,-3990.95930724,0.0003813,2]
[393715433,1762944640517,-2212.11943882,0.0003813,2]
[393715434,1762944640533,-839.15,0.0003813,2]
[393715435,1762944640572,-21052.15433997,0.0003813,2]
[393715436,1762944640582,-4156.19990002,0.0003813,2]
[393715437,1762944640626,-273853.97291508,0.0003813,2]
[393715438,1762944640635,-500.0,0.00038137,30]
[393715439,1762944640645,-500.0,0.0003817,30]
[393715440,1762944640654,-567.33047191,0.0003817,30]
[393715441,1762944640663,-500.0,0.00038173,5]
[393715442,1762944640673,-200.0,0.00038189,2]
[393715443,1762944640682,-500.0,0.00038206,30]
[393715444,1762944640691,-1000.0,0.0003823,2]
[393715445,1762944640700,-3305.0,0.00038356,30]
[393715446,1762944640709,-500.0,0.00038379,7]
[393715447,1762944640719,-700.0,0.00038379,7]
[393715448,1762944640728,-1099.35725779,0.00038394,20]
[393715449,1762944640739,-1131.42735537,0.00038394,20]
[393715451,1762944640748,-1118.83996261,0.00038394,20]
[393715453,1762944640757,-1137.1883996,0.00038394,20]
[393715455,1762944640767,-1010.27703734,0.00038394,20]
[393715457,1762944640776,-1047.38907891,0.00038394,20]
[393715459,1762944640785,-1030.90997059,0.00038394,20]
[393715461,1762944640795,-1414.93864771,0.00038394,20]
[393715463,1762944640803,-212.61,0.00038403,30]
[393715465,1762944640812,-500.0,0.00038404,30]
[393715467,1762944640822,-153.59012997,0.00038438,30]
[393715470,1762944640831,-150.0,0.00038477,7]
[393715472,1762944640842,-450.0,0.00038477,7]
[393715474,1762944640853,-216.05,0.00038493,2]
[393715476,1762944640862,-1230.35,0.00038493,2]
[393715478,1762944640872,-301.04,0.00038493,2]
[393715480,1762944640882,-248.99867423,0.00038493,2]
[393715556,1762944643456,-301.37132577,0.00038493,2]
[393715557,1762944643466,-153.34,0.00038493,2]
[393715558,1762944643476,-174.08,0.00038493,2]
[393715559,1762944643486,-289.42,0.00038493,2]
[393715560,1762944643495,-150.0,0.00038493,2]
[393715561,1762944643505,-150.0,0.00038493,2]
[393715562,1762944643514,-549.74,0.00038493,2]
[393715563,1762944643524,-549.74,0.00038493,2]
[393715564,1762944643534,-150.0,0.00038493,2]
[393715565,1762944643543,-150.0,0.00038493,2]
[393715566,1762944643557,-150.0,0.00038493,2]
[393715567,1762944643567,-549.74,0.00038493,2]
[393715568,1762944643577,-549.74,0.00038493,2]
[393715569,1762944643587,-212.61,0.00038677,30]
[393715570,1762944643596,-221.59,0.00038677,8]
[393715571,1762944643606,-397.0,0.00038774,2]
[393715572,1762944643616,-497.33316,0.0003879,2]
[393715573,1762944643625,-168.0,0.00038792,2]
[393715574,1762944643635,-173.85338264,0.000388,120]
[393715575,1762944643645,-168.0,0.00038823,2]
[393715576,1762944643655,-492.88692891,0.00038873,2]
[393715577,1762944643664,-608.0,0.00038874,2]
[393715578,1762944643674,-2143.0,0.00038874,2]
[393715579,1762944643683,-6482.0,0.00038874,2]
[393715580,1762944643692,-906.0,0.00038874,2]
[393715581,1762944643702,-212.61,0.00038951,30]
[393715582,1762944643712,-169.89978001,0.00038986,120]
[393715584,1762944643722,-496.94685554,0.00038986,120]
[393715586,1762944643731,-987.30849514,0.00038995,2]
[393715588,1762944643742,-500.0,0.00039041,120]
[393715590,1762944643755,-266.7213,0.00039072,30]
[393715592,1762944643765,-175.3346779,0.00039078,2]
[393715593,1762944643775,-161.72481843,0.00039078,12]
[393715594,1762944643784,-478.56668374,0.00039078,30]
[393715595,1762944643794,-5000.0,0.00039078,30]
[393715596,1762944643804,-1550.0,0.000391,7]
[393715597,1762944643814,-213.86492336,0.00039101,2]
[393715598,1762944643823,-987.30849514,0.00039108,2]
[393715599,1762944643833,-170.32527931,0.00039108,7]
[393715600,1762944643845,-195.88612704,0.00039108,2]
[393715601,1762944643857,-500.0,0.0003912,120]
[393715602,1762944643867,-2000.0,0.0003912,120]
[393715603,1762944643876,-500.0,0.0003912,120]
[393715604,1762944643888,-500.0,0.0003912,120]
[393715605,1762944643897,-150.0,0.00039121,2]
[393715606,1762944643908,-150.0,0.00039121,120]
[393715607,1762944643917,-150.0,0.00039121,2]
[393715608,1762944643928,-150.0,0.00039121,2]
[393715609,1762944643939,-150.0,0.00039121,10]
[393715610,1762944643952,-150.0,0.00039121,60]
[393715611,1762944643962,-150.0,0.00039121,2]
[393715612,1762944643972,-150.0,0.00039121,2]
[393715613,1762944643982,-544.0,0.00039121,2]
[393715614,1762944643991,-153.0838055,0.00039121,10]
[393715615,1762944644001,-150.0,0.00039121,10]
[393715616,1762944644011,-150.0,0.00039121,2]
[393715617,1762944644022,-150.0,0.00039121,10]
[393715618,1762944644033,-165.46327581,0.00039129,2]
[393715619,1762944644043,-503.16454672,0.00039139,2]
[393715620,1762944644056,-5709.91692936,0.00039158,4]
[393715621,1762944644066,-1427.47923234,0.00039168,4]
[393715622,1762944644076,-29977.0638791,0.00039168,4]
[393715623,1762944644085,-319.18606097,0.00039168,2]
[393715624,1762944644095,-500.0,0.00039173,5]
[393715625,1762944644105,-1494.16274246,0.00039177,28]
[393715626,1762944644115,-1098.05342992,0.00039177,30]
[393715627,1762944644124,-272.34449863,0.00039177,20]
[393715628,1762944644134,-203.52679243,0.00039177,15]
[393715629,1762944644147,-500.0,0.00039177,15]
[393715630,1762944644157,-308.15653603,0.00039177,15]
[393715631,1762944644166,-999.0,0.00039177,120]
[393715632,1762944644176,-12309.96227926,0.00039178,29]
[393715633,1762944644185,-1304.0,0.00039178,5]
[393715634,1762944644196,-500.0,0.00039178,20]
[393715635,1762944644207,-500.0,0.00039178,20]
[393715636,1762944644216,-500.0,0.00039178,20]
[393715637,1762944644226,-500.0,0.00039178,20]
[393715638,1762944644235,-500.0,0.00039178,20]
[393715639,1762944644245,-500.0,0.00039178,20]
[393715640,1762944644254,-345.97008112,0.00039178,20]
[393715641,1762944644264,-1000.0,0.00039178,2]
[393715642,1762944644273,-1000.0,0.00039178,2]
[393715643,1762944644284,-1000.0,0.00039178,2]
[393715644,1762944644294,-1000.0,0.00039178,2]
[393715645,1762944644304,-1000.0,0.00039178,2]
[393715646,1762944644313,-1000.0,0.00039178,2]
[393715647,1762944644323,-523.14596889,0.00039178,20]
[393715648,1762944644332,-500.0,0.00039178,20]
[393715649,1762944644344,-500.0,0.00039178,20]
[393715650,1762944644355,-500.0,0.00039178,20]
[393715651,1762944644364,-544.4,0.00039178,20]
[393715652,1762944644374,-544.4,0.00039178,20]
[393715653,1762944644384,-544.4,0.00039178,20]
[393715654,1762944644393,-500.0,0.00039178,20]
[393715655,1762944644403,-500.0,0.00039178,20]
[393715656,1762944644412,-500.0,0.00039178,20]
[393715657,1762944644421,-150.88506829,0.00039178,30]
[393715658,1762944644431,-500.0,0.00039178,20]
[393715659,1762944644441,-500.0,0.00039178,20]
[393715660,1762944644450,-387.43839825,0.00039178,20]
[393715661,1762944644460,-500.0,0.00039178,20]
[393715662,1762944644469,-444.75210266,0.00039178,20]
[393715663,1762944644478,-500.0,0.00039178,20]
[393715664,1762944644488,-500.0,0.00039178,20]
[393715665,1762944644498,-500.0,0.00039178,20]
[393715666,1762944644507,-500.0,0.00039178,20]
[393715667,1762944644516,-190.43452438,0.00039178,20]
[393715668,1762944644526,-500.0,0.00039178,20]
[393715669,1762944644535,-500.0,0.00039178,20]
[393715670,1762944644544,-500.0,0.00039178,20]
[393715671,1762944644554,-500.0,0.00039178,20]
[393715672,1762944644564,-500.0,0.00039178,20]
[393715673,1762944644574,-500.0,0.00039178,20]
[393715674,1762944644583,-500.0,0.00039178,20]
[393715675,1762944644593,-500.0,0.00039178,20]
[393715676,1762944644602,-500.0,0.00039178,20]
[393715677,1762944644611,-500.0,0.00039178,20]
[393715678,1762944644620,-500.0,0.00039178,20]
[393715679,1762944644629,-500.0,0.00039178,20]
[393715680,1762944644639,-500.0,0.00039178,20]
[393715681,1762944644647,-396.06051943,0.00039178,20]
[393715682,1762944644657,-498.68757513,0.00039178,20]
[393715683,1762944644666,-500.0,0.00039178,20]
[393715684,1762944644677,-156.00658817,0.00039178,20]
[393715685,1762944644686,-500.0,0.00039178,20]
[393715686,1762944644695,-500.0,0.00039178,20]
[393715687,1762944644705,-500.0,0.00039178,20]
[393715688,1762944644715,-500.0,0.00039178,20]
[393715689,1762944644732,-495.08710458,0.00039178,20]
[393715690,1762944644744,-408.61620418,0.00039178,20]
[393715691,1762944644754,-500.0,0.00039178,20]
[393715692,1762944644763,-500.0,0.00039178,20]
[393715693,1762944644773,-500.0,0.00039178,20]
[393715694,1762944644783,-500.0,0.00039178,20]
[393715695,1762944644792,-500.0,0.00039178,20]
[393715696,1762944644801,-500.0,0.00039178,20]
[393715697,1762944644810,-500.0,0.00039178,20]
[393715698,1762944644819,-500.0,0.00039178,20]
[393715699,1762944644829,-500.0,0.00039178,20]
[393715700,1762944644842,-500.0,0.00039178,20]
[393715701,1762944644851,-500.0,0.00039178,20]
[393715702,1762944644861,-500.0,0.00039178,20]
[393715703,1762944644870,-500.0,0.00039178,20]
[393715704,1762944644880,-500.0,0.00039178,20]
[393715705,1762944644892,-296.48567449,0.00039178,20]
[393715706,1762944644902,-500.0,0.00039178,20]
[393715707,1762944644912,-500.0,0.00039178,20]
[393715708,1762944644924,-407.64417458,0.00039178,20]
[393715709,1762944644934,-502.06,0.00039178,2]
[393715710,1762944644943,-502.06,0.00039178,2]
[393715711,1762944644953,-502.06,0.00039178,2]
[393715712,1762944644962,-502.06,0.00039178,2]
[393715713,1762944644971,-502.06,0.00039178,2]
[393715714,1762944644981,-502.06,0.00039178,2]
[393715715,1762944644990,-500.0,0.00039178,20]
[393715716,1762944644999,-500.0,0.00039178,20]
[393715717,1762944645009,-502.06,0.00039178,2]
[393715718,1762944645019,-501.51642276,0.00039178,20]
[393715719,1762944645029,-500.0,0.00039178,20]
[393715720,1762944645039,-500.0,0.00039178,20]
[393715721,1762944645049,-500.0,0.00039178,20]
[393715722,1762944645069,-500.0,0.00039178,20]
[393715723,1762944645078,-500.0,0.00039178,20]
[393715724,1762944645089,-500.0,0.00039178,20]
[393715725,1762944645098,-500.0,0.00039178,20]
[393715726,1762944645111,-500.0,0.00039178,20]
[393715727,1762944645121,-500.0,0.00039178,20]
[393715728,1762944645130,-500.0,0.00039178,20]
[393715729,1762944645139,-500.0,0.00039178,20]
[393715730,1762944645149,-500.0,0.00039178,20]
[393715731,1762944645159,-500.0,0.00039178,20]
[393715732,1762944645168,-500.0,0.00039178,20]
[393715733,1762944645178,-500.0,0.00039178,20]
[393715734,1762944645187,-500.0,0.00039178,20]
[393715735,1762944645197,-185.3460015,0.00039178,20]
[393715736,1762944645207,-500.0,0.00039178,20]
[393715737,1762944645217,-500.0,0.00039178,20]
[393715738,1762944645226,-500.0,0.00039178,20]
[393715739,1762944645236,-500.0,0.00039178,20]
[393715740,1762944645246,-500.0,0.00039178,20]
[393715741,1762944645256,-248.08610061,0.00039178,20]
[393715742,1762944645265,-500.0,0.00039178,15]
[393715743,1762944645276,-500.0,0.00039178,15]
[393715744,1762944645286,-500.0,0.00039178,15]
[393715745,1762944645295,-238.92516884,0.00039178,20]
[393715746,1762944645308,-500.0,0.00039178,20]
[393715747,1762944645318,-325.13703902,0.00039178,20]
[393715748,1762944645327,-572.62094169,0.00039178,20]
[393715749,1762944645337,-500.0,0.00039178,20]
[393715750,1762944645346,-594.91755424,0.00039178,20]
[393715751,1762944645356,-616.13287521,0.00039178,20]
[393715752,1762944645366,-523.54282516,0.00039178,20]
[393715753,1762944645376,-500.0,0.00039178,20]
[393715754,1762944645385,-500.0,0.00039178,20]
[393715755,1762944645395,-500.0,0.00039178,20]
[393715756,1762944645405,-500.0,0.00039178,20]
[393715757,1762944645415,-500.0,0.00039178,20]
[393715758,1762944645425,-500.0,0.00039178,20]
[393715759,1762944645435,-500.0,0.00039178,20]
[393715760,1762944645444,-500.0,0.00039178,20]
[393715761,1762944645454,-500.0,0.00039178,20]
[393715762,1762944645463,-500.0,0.00039178,20]
[393715763,1762944645473,-500.0,0.00039178,20]
[393715764,1762944645482,-500.0,0.00039178,20]
[393715765,1762944645495,-458.97792544,0.00039178,20]
[393715766,1762944645506,-500.0,0.00039178,20]
[393715767,1762944645516,-500.0,0.00039178,20]
[393715768,1762944645526,-500.0,0.00039178,20]
[393715769,1762944645535,-500.0,0.00039178,20]
[393715770,1762944645545,-500.0,0.00039178,20]
[393715771,1762944645554,-295.37172613,0.00039178,20]
[393715772,1762944645565,-500.0,0.00039178,20]
[393715773,1762944645575,-500.0,0.00039178,20]
[393715774,1762944645584,-500.0,0.00039178,20]
[393715775,1762944645594,-436.66631772,0.00039178,20]
[393715776,1762944645603,-500.0,0.00039178,20]
[393715777,1762944645612,-534.81132141,0.00039178,20]
[393715778,1762944645622,-500.0,0.00039178,20]
[393715779,1762944645631,-332.65926516,0.00039178,20]
[393715780,1762944645641,-500.0,0.00039178,20]
[393715781,1762944645651,-500.0,0.00039178,20]
[393715782,1762944645660,-500.0,0.00039178,20]
[393715783,1762944645670,-404.66631607,0.00039178,20]
[393715784,1762944645679,-500.0,0.00039178,20]
[393715785,1762944645693,-300.0,0.00039178,20]
[393715786,1762944645703,-300.0,0.00039178,20]
[393715787,1762944645712,-300.0,0.00039178,20]
[393715788,1762944645722,-300.0,0.00039178,20]
[393715789,1762944645731,-300.0,0.00039178,20]
[393715790,1762944645741,-362.79834478,0.00039178,20]
[393715791,1762944645750,-572.369273,0.00039178,20]
[393715792,1762944645760,-500.0,0.00039178,20]
[393715793,1762944645770,-500.0,0.00039178,20]
[393715794,1762944645780,-500.0,0.00039178,20]
[393715795,1762944645789,-500.0,0.00039178,20]
[393715796,1762944645799,-500.0,0.00039178,20]
[393715797,1762944645808,-548.25894484,0.00039178,20]
[393715798,1762944645819,-500.0,0.00039178,20]
[393715799,1762944645830,-500.0,0.00039178,20]
[393715800,1762944645841,-500.0,0.00039178,20]
[393715801,1762944645857,-500.0,0.00039178,20]
[393715802,1762944645867,-500.0,0.00039178,20]
[393715803,1762944645877,-500.0,0.00039178,20]
[393715804,1762944645890,-500.0,0.00039178,20]
[393715805,1762944645899,-500.0,0.00039178,20]
[393715806,1762944645909,-500.0,0.00039178,20]
[393715807,1762944645919,-500.0,0.00039178,20]
[393715808,1762944645928,-500.0,0.00039178,20]
[393715809,1762944645938,-500.0,0.00039178,20]
[393715810,1762944645948,-184.16030113,0.00039178,20]
[393715811,1762944645957,-164.40470441,0.00039178,20]
[393715812,1762944645966,-545.14304682,0.00039178,20]
[393715813,1762944645976,-500.0,0.00039178,20]
[393715814,1762944645986,-500.0,0.00039178,20]
[393715815,1762944645996,-500.0,0.00039178,20]
[393715816,1762944646007,-500.0,0.00039178,20]
[393715817,1762944646015,-500.0,0.00039178,20]
[393715818,1762944646025,-500.0,0.00039178,20]
[393715819,1762944646035,-500.0,0.00039178,20]
[393715820,1762944646044,-500.0,0.00039178,20]
[393715821,1762944646054,-500.0,0.00039178,20]
[393715822,1762944646063,-328.11697659,0.00039178,20]
[393715823,1762944646073,-500.0,0.00039178,20]
[393715824,1762944646083,-500.0,0.00039178,20]
[393715825,1762944646094,-500.0,0.00039178,20]
[393715826,1762944646103,-500.0,0.00039178,20]
[393715827,1762944646113,-500.0,0.00039178,20]
[393715828,1762944646123,-500.0,0.00039178,20]
[393715829,1762944646132,-500.0,0.00039178,20]
[393715830,1762944646142,-500.0,0.00039178,20]
[393715831,1762944646151,-312.73000595,0.00039178,20]
[393715832,1762944646160,-500.0,0.00039178,20]
[393715833,1762944646170,-500.0,0.00039178,20]
[393715834,1762944646179,-500.0,0.00039178,20]
[393715835,1762944646188,-500.0,0.00039178,20]
[393715836,1762944646198,-500.0,0.00039178,20]
[393715837,1762944646207,-500.0,0.00039178,20]
[393715838,1762944646217,-500.0,0.00039178,20]
[393715839,1762944646227,-500.0,0.00039178,20]
[393715840,1762944646236,-503.71,0.00039178,20]
[393715841,1762944646246,-503.71,0.00039178,20]
[393715842,1762944646256,-503.71,0.00039178,20]
[393715843,1762944646265,-503.71,0.00039178,20]
[393715844,1762944646283,-503.71,0.00039178,20]
[393715845,1762944646300,-503.71,0.00039178,20]
[393715846,1762944646310,-439.80149133,0.00039178,20]
[393715847,1762944646320,-500.0,0.00039178,20]
[393715848,1762944646330,-500.0,0.00039178,20]
[393715849,1762944646339,-500.0,0.00039178,20]
[393715850,1762944646349,-500.0,0.00039178,20]
[393715851,1762944646359,-500.0,0.00039178,20]
[393715852,1762944646369,-500.0,0.00039178,20]
[393715853,1762944646379,-500.0,0.00039178,20]
[393715854,1762944646653,-500.0,0.00039178,20]
[393715855,1762944646663,-500.0,0.00039178,20]
[393715856,1762944646673,-500.0,0.00039178,20]
[393715857,1762944646682,-500.0,0.00039178,20]
[393715858,1762944646691,-500.0,0.00039178,20]
[393715859,1762944646700,-253.96407365,0.00039178,20]
[393715860,1762944646710,-500.0,0.00039178,20]
[393715861,1762944646719,-500.0,0.00039178,20]
[393715862,1762944646728,-500.0,0.00039178,20]
[393715863,1762944646737,-500.0,0.00039178,20]
[393715864,1762944646747,-500.0,0.00039178,20]
[393715865,1762944646757,-500.0,0.00039178,20]
[393715866,1762944646767,-500.0,0.00039178,20]
[393715867,1762944646776,-500.0,0.00039178,20]
[393715868,1762944646786,-500.0,0.00039178,20]